[Event "45th FIDE Olympiad 2024"]
[Site "Budapest"]
[Date "2024.09.12"]
[Round "2.147"]
[White "Zhao, Zong-Yuan"]
[Black "Mwadzura, Roy"]
[Result "1-0"]
[ECO "D02"]
[WhiteElo "2478"]
[BlackElo "2229"]
[Annotator "TA"]
[PlyCount "147"]
[EventDate "2024.09.05"]
[EventType "team-tourn"]
[EventCountry "HUN"]
[SourceTitle "playchess.com"]
[Source "ChessBase"]
[SourceQuality "1"]
[WhiteTeam "Australia"]
[BlackTeam "Zimbabwe"]
[WhiteTeamCountry "AUS"]
[BlackTeamCountry "ZIM"]
[TimeControl "40/5400+30:1800+30"]

{[%evp 12,147,9,-5,10,25,22,20,18,20,14,14,52,54,54,29,29,11,19,0,17,12,16,0,28,11,22,30,37,28,49,15,36,10,35,40,36,36,34,39,87,79,101,51,80,34,39,23,44,52,58,31,50,8,39,11,18,18,37,31,22,18,72,62,80,76,112,127,145,164,154,83,90,83,83,83,79,83,156,153,229,220,213,188,188,179,237,251,247,250,248,135,364,367,457,432,441,411,388,381,423,410,462,446,430,464,431,442,443,412,496,301,271,143,854,840,587,587,1844,1535,5389,5085,8762,5493,29944,12479,12838,10989,29966,29965,29967,29962,29984,29985,29988,29989,29991,29992]} 1. d4 e6 2. Nf3 Nf6 3. Bf4 c5 4. e3 Nc6 5. Nbd2 d5 6. c3 Bd6 7. Bg3 Bxg3 8. hxg3 Qe7 9. Bb5 Bd7 {The position is equal.} 10. Bxc6 Bxc6 11. Ne5 Qc7 12. Qf3 h6 13. g4 {Black must now prevent g5.} Rf8 14. Qf4 cxd4 15. Qxd4 ({Don't play} 15. cxd4 Bb5 16. Qf3 Rc8 $15) 15... Qb6 16. O-O-O Qxd4 17. exd4 Bb5 18. Rde1 {Inhibits Be2.} O-O-O 19. Rh3 Ne8 20. Rhe3 Nc7 21. f4 Be8 22. Ndf3 f6 23. Nd3 b6 24. f5 exf5 25. gxf5 g5 {Prevents Nf4} (25... Bf7 $14) 26. fxg6 $16 Bxg6 27. Nf2 ({White should try} 27. Nf4 $16 Rg8 28. Rh1) 27... Rd7 28. Kd2 (28. Nh4 $16 Bh7 29. Rf3) 28... Rg7 $14 29. Re7 Rgg8 30. Nh4 Kd8 {[%cal Og6e4]} 31. R7e3 Bh7 32. b3 b5 33. Rf3 Rg5 34. g3 Ne8 35. Re6 Rfg8 36. Rfe3 $36 {[%mdl 2048] White has some pressure.} Bb1 (36... h5 $1 $11 {remains equal.}) 37. a4 bxa4 38. bxa4 R5g7 {[%cal Od8d7]} 39. Nd3 $1 Bxd3 40. Kxd3 Rg5 41. Ng2 {White is much more active.} (41. Kc2 $142) 41... Nc7 $16 42. Rxf6 Rxg3 43. Nf4 Rxe3+ 44. Kxe3 {[%mdl 4096] Endgame. KRN-KRN} Kd7 (44... Rh8 $142) 45. Rxh6 Rg3+ (45... Rg1 $16 {is a better defense.} 46. Nd3 Rg3+ 47. Kd2 Rg2+ 48. Kc1 Re2 49. Rh7+ Kc8) 46. Kd2 $18 Rg4 47. Rh7+ Kd6 48. Rf7 a5 (48... Rg1 $142 49. Nd3 Kc6) 49. Kc2 Rg1 50. Rf6+ Kd7 51. Nd3 ({Better is} 51. Rb6 $18) 51... Rg2+ $2 (51... Ne6 $16 52. Ne5+ Kd6) 52. Kb3 Rg3 53. Nc5+ Ke7 54. Rc6 Ne8 55. Re6+ Kd8 56. Ra6 Kc7 57. Ne6+ (57. Rxa5 Rg1 58. Nd3 Nd6 59. Rxd5 Rb1+ 60. Kc2 Ra1 61. Rc5+ Kd8) 57... Kd7 58. Nf4 Nc7 59. Rxa5 Kd6 60. Rc5 Rf3 {[#]} 61. Rxc7 $1 Kxc7 62. Nxd5+ {KR-KN} Kd6 $2 {[%mdl 8192] Black cannot hold the game after this.} (62... Kc6 $16 63. Kc4 Rf8) 63. Kc4 Rf8 64. Nb4 $1 {aiming for a5.} Ra8 {[#]} 65. Kb3 $1 Rh8 66. a5 Rh3 67. Kc4 {Intending d5 and mate.} Rh5 {[#]} 68. d5 $1 {[%cal Bd4d5,Bd5d6,Bd6d7][%mdl 32] a6 would kill now.} Rh1 69. Kb5 {White wants to mate with a6.} Kc7 70. c4 {[%cal Bc3c4,Bc4c5][%mdl 32] White mates.} Kb7 71. c5 Rh5 72. d6 Rg5 73. a6+ Ka7 74. d7 {Weighted Error Value: White=0.13 (very precise) /Black=0.19 (very precise) .  Loses game:     	---       	Black=2      Mistake:       	White=4     	Black=5      Inaccurate:     	White=5     	Black=6      OK:         	White=20    	Black=20     Best:        	White=5     	Black=5      Strong:       	White=2     	---        Brilliant:      	White=1     	---} 1-0

[Event "45th FIDE Olympiad 2024"]
[Site "Budapest"]
[Date "2024.09.12"]
[Round "2.148"]
[White "Mushore, Emarald Takudzwa"]
[Black "Smerdon, David C"]
[Result "0-1"]
[ECO "B34"]
[WhiteElo "2150"]
[BlackElo "2475"]
[Annotator "TA"]
[PlyCount "44"]
[EventDate "2024.09.05"]
[EventType "team-tourn"]
[EventCountry "HUN"]
[SourceTitle "playchess.com"]
[Source "ChessBase"]
[SourceQuality "1"]
[WhiteTeam "Zimbabwe"]
[BlackTeam "Australia"]
[WhiteTeamCountry "ZIM"]
[BlackTeamCountry "AUS"]
[TimeControl "40/5400+30:1800+30"]

{[%evp 12,44,18,-29,-26,-15,0,-31,-36,-39,-39,-38,-36,-49,0,-55,-63,-57,-40,-46,-37,-172,-83,-315,-310,-694,-687,-742,-710,-29988,-29989,-29992,-29993,-29994,-29995]} 1. e4 c5 2. Nf3 Nc6 3. d4 cxd4 4. Nxd4 g6 5. Nc3 Bg7 6. Be3 Nf6 7. h3 (7. f4 {might be stronger.}) 7... O-O $1 $11 8. Qd2 d5 {aiming for ...Nxd4.} 9. exd5 Nxd5 {Black is slightly better.} 10. Nxc6 $1 bxc6 11. Bd4 e5 12. Bc5 {[#]} Nxc3 (12... Re8 $1 $15) 13. Qxc3 (13. Bxf8 $11 Qxf8 14. Qxc3 (14. bxc3 Bh6 $15)) 13... e4 $36 {[%mdl 2048] Black has good play.} 14. Qa3 {[%cal Oa1d1] [#]} e3 $1 15. Bxe3 {[%cal Of1d3]} Rb8 16. c3 {[#]} (16. Qc5 $15) 16... Qd5 (16... Re8 $1 $19 {[%cal Re8e3]} 17. Be2 Rxe3 18. fxe3 Qh4+ 19. Kf1 Bh6) 17. Rc1 $2 (17. Bxa7 $2 {is the wrong capture.} Ra8 18. Be2 Qxg2 $19 (18... Qd7 $2 19. O-O $19)) (17. Be2 $17 Qxg2 18. O-O-O) 17... Re8 $19 {...Bf5 is the strong threat.} 18. b3 $2 (18. Rd1 Qe4 19. Rd2) 18... Bf5 {White must now prevent ...Bh6.} 19. Qa6 Rbd8 {[%csl Gd8][%cal Rd5d2]} 20. Be2 Qxg2 {Black mates.} 21. Rf1 {[#]} Rxe3 $1 {[%mdl 512]} 22. fxe3 (22. Qc4 Re4) 22... Be5 {Weighted Error Value: White=0.87/Black=0.11 (very precise) .  Loses game:     	White=1     	---        Mistake:       	White=3     	Black=2      Inaccurate:     	White=1     	---        OK:         	White=4     	Black=3      Best:        	---       	Black=2      Strong:       	White=1     	---} 0-1

[Event "45th FIDE Olympiad 2024"]
[Site "Budapest"]
[Date "2024.09.12"]
[Round "2.149"]
[White "Miguel, Sergio"]
[Black "Bogner, Sebastian"]
[Result "1-0"]
[ECO "B51"]
[WhiteElo "2241"]
[BlackElo "2545"]
[Annotator "TA"]
[PlyCount "117"]
[EventDate "2024.09.05"]
[EventType "team-tourn"]
[EventCountry "HUN"]
[SourceTitle "playchess.com"]
[Source "ChessBase"]
[SourceQuality "1"]
[WhiteTeam "Angola"]
[BlackTeam "Switzerland"]
[WhiteTeamCountry "ANG"]
[BlackTeamCountry "SUI"]
[TimeControl "40/5400+30:1800+30"]

{[%evp 23,117,0,0,0,0,0,0,-34,-35,-31,-35,-34,-19,-58,-27,-22,-32,-26,-37,-31,-22,-73,-75,-58,-22,-34,-17,-138,-12,-15,-12,-27,166,166,163,-31,0,0,0,0,0,-50,-6,-5,-13,-56,0,-10,-12,-13,-11,-97,0,0,58,-29,413,458,464,468,473,472,461,458,425,458,470,459,485,455,480,464,479,481,467,474,586,566,906,932,1124,1110,1285,1204,1141,1191,29958,29959,29976,29977,29985,29977,29988,29979,29983,29984]} 1. e4 c5 2. Nf3 d6 3. Bb5+ Nd7 4. d4 Ngf6 5. Nc3 cxd4 6. Qxd4 e5 7. Qd3 h6 8. Be3 a6 {B51: Sicilian: Moscow Variation (3 Bb5+) without 3...Bd7.} 9. Ba4 b5 10. Bb3 Bb7 11. a4 Qa5 12. O-O (12. axb5 $2 Qxa1+ 13. Nd1 Bxe4 $19) 12... b4 13. Nd5 Bxd5 14. Bxd5 (14. exd5 $2 e4 15. Qc4 (15. Rae1 $2 Be7 $19) 15... exf3 $17) 14... Nxd5 15. Qxd5 Qxd5 16. exd5 Nf6 $146 ({Predecessor:} 16... Rc8 17. Rac1 Nf6 18. Rfd1 Be7 19. g3 Kd7 20. Ne1 Rb8 21. Ng2 Bd8 22. h3 Ba5 {0-1 Vyskocil,N (2347)-Cernousek,L (2431) Pardubice tt 2009 (6)}) 17. Rfd1 Be7 18. a5 Rb8 19. c4 bxc3 20. bxc3 Kd7 21. c4 Rhc8 22. c5 (22. Nd2 $11 {remains equal.}) 22... Rb5 $17 23. h3 Ne4 24. c6+ Ke8 25. Rdb1 (25. Nd2 $1 $11 Nc3 26. Nc4) 25... Rxd5 (25... Nc3 $1 $17 26. Rxb5 axb5) 26. Rb6 $11 Nc5 27. Rc1 Nd3 $2 (27... Kd8 $11 {and Black stays safe.}) 28. Rcb1 $1 $18 Nc5 (28... Rxa5 $2 29. Rb8 f5 30. Rxc8+ $18) 29. Rc1 $2 (29. Rb8 $1 $18 {[%cal Rb8c8]} Kd8 30. R1b7) 29... e4 30. Nd2 $1 Bg5 31. Nc4 Ke7 32. Bxg5+ (32. f3 $11) 32... Rxg5 33. Ne3 Ke6 34. Kf1 Rc7 ({Black should play} 34... Nd3 $15 35. Rc4 Rxa5 36. Rxe4+ Ne5) 35. Rc4 Re5 36. g4 g6 37. Rd4 {[#]} (37. Ke2 $11) 37... d5 (37... f5 $1 $17 {...f4 is the strong threat.} 38. Rc4 Nd3 (38... f4 39. Nc2 $17) 39. gxf5+ gxf5) 38. Rb8 $11 Nd3 (38... Rxc6 $6 39. Re8+ Kf6 40. Nxd5+ Rxd5 41. Rxd5 $18) ({Black should try} 38... f6 $1 $11) 39. Re8+ (39. Nxd5 $1 $14 Rxd5 (39... Rxc6 $2 {perishes.} 40. Re8+ Kd6 41. Nf6+ Kc5 42. Rxd3 $18) 40. Re8+ (40. Rxe4+ $2 Kd6 $19) 40... Kd6 41. Rd8+ (41. Rdxe4 $2 {too greedy.} Kxc6 42. Ra4 Kb5 $19) 41... Ke6 42. R8xd5 (42. R4xd5 Rxc6 43. Rd4 f5 $16) 42... Rxc6 43. Rd8 (43. Rxe4+ $2 Kxd5 44. Re3 Ne5 $19)) 39... Re7 $2 {[%mdl 8192]} (39... Kd6 $1 $11 {and Black has nothing to worry.} 40. Rxe5 Kxe5 41. Rxd5+ Ke6) 40. Rxe7+ $18 Kxe7 41. Nxd5+ Kd8 {[#]} 42. f4 $1 Nxf4 43. Nxf4+ Kc7 44. Rd7+ Kxc6 45. Rxf7 g5 46. Rf6+ Kd7 47. Ne2 Rxa5 48. Rxh6 Ra3 49. Kg2 a5 50. Rg6 a4 51. Rxg5 Ra2 52. Kf2 e3+ 53. Kxe3 Ra3+ 54. Kf4 Rxh3 55. Ra5 Ra3 56. g5 Ke6 57. Ra6+ Kf7 58. Kf5 Rf3+ 59. Nf4 1-0

[Event "45th FIDE Olympiad 2024"]
[Site "Budapest"]
[Date "2024.09.12"]
[Round "2.150"]
[White "Pelletier, Yannick"]
[Black "Sapalo, Gabriel"]
[Result "1-0"]
[ECO "D41"]
[WhiteElo "2526"]
[BlackElo "2058"]
[Annotator "TA"]
[PlyCount "93"]
[EventDate "2024.09.05"]
[EventType "team-tourn"]
[EventCountry "HUN"]
[SourceTitle "playchess.com"]
[Source "ChessBase"]
[SourceQuality "1"]
[WhiteTeam "Switzerland"]
[BlackTeam "Angola"]
[WhiteTeamCountry "SUI"]
[BlackTeamCountry "ANG"]
[TimeControl "40/5400+30:1800+30"]

{[%evp 11,93,39,34,38,27,-1,37,35,28,20,29,29,58,53,55,57,56,53,50,52,202,226,222,224,223,181,175,177,185,169,165,156,210,216,227,227,240,221,237,235,293,279,287,271,301,307,420,416,504,498,563,528,491,474,482,464,608,0,343,0,545,231,997,783,942,1156,1073,786,1104,1004,1230,1210,939,699,1838,1413,2647,1293,29976,29977,29975,29976,29978,29979]} 1. Nf3 Nf6 2. c4 e6 3. Nc3 d5 4. d4 c5 5. cxd5 cxd4 6. Qxd4 exd5 7. e4 dxe4 8. Qxd8+ Kxd8 {[%cal Be8d8,Bd8d7,Bd7e7][%mdl 32]} 9. Ng5 {[%csl LRe4,LRf7] White is slightly better.} Be6 10. Nxe6+ fxe6 11. Bc4 Kd7 12. Bg5 Bb4 13. O-O-O+ Ke7 $1 14. Rhe1 $36 {[%mdl 2048] White has good play.} (14. Nxe4 $2 Rc8 15. b3 b5 $19) 14... Bxc3 15. bxc3 Rc8 {White now steadily converts the win.} (15... Nbd7 $14) 16. Rxe4 $18 Rc6 17. Bd5 {This pair of bishops is nice.} Rb6 18. Rde1 {[%cal Re4e6]} Nbd7 19. Rxe6+ (19. Bxe6 Nc5 20. Bb3+ (20. Bxf6+ gxf6 21. Bd5+ Nxe4 $17) 20... Ncxe4 21. Rxe4+ Kf8 $11) 19... Kf8 20. Rxb6 axb6 21. Bb3 (21. Bxb7 Rxa2 22. Kb1 Ra5) 21... Re8 (21... Nc5 $16) 22. Rxe8+ Kxe8 {[%mdl 4096] Endgame. KBB-KNN} 23. f3 {Wards off Ne4} Ke7 24. Kd2 Nc5 25. Ke3 h6 26. Bxf6+ (26. Bh4 g5 27. Be1 Nxb3 28. axb3 h5 $18) 26... Kxf6 {KB-KN} 27. Kd4 Ke7 28. f4 h5 29. g3 {[%cal Bg2g3,Bg3h4][%mdl 32]} h4 30. gxh4 Kf6 31. Bc2 Ne6+ 32. Ke4 Nc5+ 33. Kd5 Ne6 34. Ke4 Nc5+ $1 35. Kd5 (35. Kf3 $142) 35... Ne6 36. f5 (36. Kd6 $142) 36... Nf4+ (36... Nc7+ 37. Kc4 Ke5) 37. Kd6 {[#] Hoping for a4.} b5 38. Kc5 Ne2 39. Kb4 {[%cal Oa2a3] a3! is the strong threat.} ({Worse is} 39. Kxb5 Nxc3+ 40. Kc4 Nxa2 $11) 39... Ke5 40. a3 ({Stronger than} 40. Kxb5 Nxc3+ 41. Kb6 Nxa2 $11) 40... Nf4 41. Kxb5 {And now Kb6 would win.} Nd5 42. Kc5 {a4 would now be deadly.} Nxc3 43. Kb6 Kd6 44. Kxb7 (44. a4 $142 Na2 45. Kxb7) 44... Kc5 {[#]} 45. f6 $1 {White mates.} gxf6 46. h5 Nb5 47. Bg6 {Weighted Error Value: White=0.36/Black=0.27 (precise) .  Mistake:       	White=1     	Black=3      Inaccurate:     	White=1     	Black=4      OK:         	White=18    	Black=5      Best:        	White=1     	Black=4      Strong:       	---       	Black=2} 1-0

[Event "45th FIDE Olympiad 2024"]
[Site "Budapest"]
[Date "2024.09.12"]
[Round "2.151"]
[White "Silva, David"]
[Black "Peng, Li Min"]
[Result "0-1"]
[ECO "B90"]
[WhiteElo "2363"]
[BlackElo "2514"]
[Annotator "TA"]
[PlyCount "110"]
[EventDate "2024.09.05"]
[EventType "team-tourn"]
[EventCountry "HUN"]
[SourceTitle "playchess.com"]
[Source "ChessBase"]
[SourceQuality "1"]
[WhiteTeam "Angola"]
[BlackTeam "Switzerland"]
[WhiteTeamCountry "ANG"]
[BlackTeamCountry "SUI"]
[TimeControl "40/5400+30:1800+30"]

{[%evp 23,110,37,22,0,0,0,0,0,0,0,0,0,0,0,0,-122,-105,-145,-139,-159,-127,-153,-157,-130,-128,-141,-112,-137,-138,-140,-149,-180,-158,-149,-135,-195,-195,-209,-170,-231,-228,-211,-160,-175,-33,-41,-40,-40,-15,-77,-81,-143,-126,-120,-115,-556,-606,-606,-612,-612,-618,-606,-626,-627,-592,-529,-368,-335,-211,-329,-329,-239,-251,-254,-256,-262,-263,-956,-906,-687,-694,-492,-479,-29970,-29969,-29971,-29968,-29972,-12590]} 1. e4 c5 2. Nf3 d6 3. Nc3 Nf6 4. d4 cxd4 5. Nxd4 a6 6. a3 Nbd7 {B90: Sicilian Najdorf: Unusual White 6th moves, 6 Be3 Ng4 and 6 Be3 e5.} 7. g4 h6 8. Bg2 $146 ({Predecessor:} 8. h4 g6 9. Bg2 Ne5 10. g5 Nh5 11. f4 Bg4 12. Qd2 Nc4 13. Qd3 Rc8 14. b3 {0-1 Chigaev,M (2631)-Xiong,J (2709) PNWCC Online Blitz JP 21 2021 (8)}) 8... Ne5 9. h3 g5 10. Qe2 Bd7 11. f4 gxf4 12. Bxf4 Rc8 $1 13. O-O-O Rxc3 $1 14. bxc3 Qc7 15. Bxe5 dxe5 16. Nb3 $1 e6 17. Kb2 Bb5 18. Qf3 Nd7 19. Rxd7 (19. Bf1 $11 Bc6 20. Rh2) 19... Bxd7 $17 (19... Qxd7 $6 20. Qf6 Rg8 21. Qxe5 $11) 20. Rd1 Be7 21. Qd3 Bb5 22. Qe3 Kf8 23. Qg3 a5 24. Bf1 Bc6 25. Bd3 a4 26. Nd2 Qb6+ 27. Ka2 Qc5 28. Nb1 Bg5 29. h4 (29. Nd2 $17) 29... Bf4 $19 30. Qf3 Ke7 31. Qe2 (31. Re1 {is a better defense.}) 31... Rg8 $19 32. c4 Qd4 33. Qe1 Qe3 (33... Rxg4 34. Be2 Qxe4 35. Bxg4 $16) (33... b6 $19 {[%cal Od4c5] ...Qc5! is the strong threat.} 34. g5 hxg5 35. hxg5 Qc5 (35... Rxg5 36. Nc3 $17)) 34. Qb4+ $15 Kf6 35. Nc3 $1 Rxg4 36. Qf8 (36. Nd5+ $1 $11 exd5 37. cxd5 Rxh4 38. dxc6 bxc6 39. Qxa4) 36... Rg2 $17 (36... Rxh4 $2 {perishes.} 37. Qd8+ Kg7 38. Qxh4 $18) 37. h5 ({White should try} 37. Nb5 Qg3 (37... Bxe4 38. Nd6 Rg7 39. Bxe4) 38. Qh8+ Kg6 39. Nd6) 37... Rd2 $17 38. Rxd2 Qxd2 39. Nd5+ $2 {[%mdl 8192]} (39. Nb5 $17 {is tougher.}) 39... exd5 $19 40. exd5 e4 $1 41. Bxe4 Qe1 42. Qh8+ Ke7 43. Qd4 Bd7 44. c5 Qg3 45. d6+ Bxd6 46. cxd6+ Qxd6 47. Qe3 Be6+ 48. Kb1 Qd1+ 49. Kb2 Qxh5 50. Qc3 $2 (50. Bd3) 50... Qb5+ $19 51. Kc1 Qf1+ 52. Kb2 Qf6 (52... Qb5+ $2 53. Kc1 $17) 53. Bxb7 (53. Bf3 $19) 53... h5 54. Bc6 h4 55. Bh1 h3 0-1

[Event "45th FIDE Olympiad 2024"]
[Site "Budapest"]
[Date "2024.09.12"]
[Round "2.152"]
[White "Kurmann, Oliver"]
[Black "Junior, Domingos"]
[Result "1-0"]
[ECO "B15"]
[WhiteElo "2421"]
[BlackElo "2183"]
[Annotator "TA"]
[PlyCount "68"]
[EventDate "2024.09.05"]
[EventType "team-tourn"]
[EventCountry "HUN"]
[SourceTitle "playchess.com"]
[Source "ChessBase"]
[SourceQuality "1"]
[WhiteTeam "Switzerland"]
[BlackTeam "Angola"]
[WhiteTeamCountry "SUI"]
[BlackTeamCountry "ANG"]
[TimeControl "40/5400+30:1800+30"]

{[%evp 12,68,42,29,33,25,40,22,22,20,40,38,39,35,33,2,8,0,6,0,33,33,38,31,29,20,32,0,103,43,131,120,127,132,128,125,107,126,134,109,180,197,195,123,192,164,175,160,202,170,204,197,253,112,279,146,148,158,158]} 1. e4 c6 2. d4 d5 3. Nd2 dxe4 4. Nxe4 Nf6 5. Nxf6+ exf6 6. c3 Bf5 7. Ne2 Bd6 8. Ng3 Bg6 9. Qe2+ Qe7 {The position is equal.} 10. Qxe7+ Kxe7 11. f4 Nd7 12. Kf2 Rhe8 13. h4 {[%cal Bh2h4,Bh4h5][%mdl 32]} h6 14. h5 Bc2 15. Be3 f5 16. Rc1 Be4 17. Nxe4 fxe4 18. Be2 $36 {[%mdl 2048] Black is under pressure.} f5 19. c4 {[%cal Bc3c4,Bc4c5][%mdl 32]} Nf8 (19... Nf6 $11) 20. g3 (20. Rhd1 $16) 20... Ne6 (20... Nd7 $14) 21. Rhd1 $16 Rf8 22. c5 Bc7 23. d5 cxd5 24. Rxd5 Rad8 {Dodges c6} 25. Rcd1 {White is more active.} Kf6 (25... b6 $16) 26. Bc4 $18 Rxd5 27. Bxd5 (27. Rxd5 $18 {Strongly threatening Rd7.} Rd8 28. Bd2) 27... Rd8 (27... b6 $16) 28. Ke2 b6 {[#]} 29. b4 {[%cal Bb2b4,Bb4c5,Bc5c6][%mdl 32]} bxc5 30. bxc5 Ke7 31. c6 a6 {[#]} (31... Rb8 $142 32. Bb3 (32. Bxa7 Ra8 $18) 32... Bd6 33. Bxa7 Rc8) 32. Bc1 {A strong pair of Bishops.} (32. Bc4 $1 $18 {is the precise move to win.}) 32... Nc5 $2 (32... Bd6 $16 33. Bb2 Rc8) 33. Bc4 (33. Ba3 $18 Bb6 34. c7) 33... Rxd1 $16 34. Kxd1 {Bb2 is the strong threat.} e3 {Weighted Error Value: White=0.27 (precise) /Black=0.34.  Loses game:     	---       	Black=1      Mistake:       	White=4     	Black=5      Inaccurate:     	White=2     	Black=1      OK:         	White=11    	Black=8      Best:        	White=1     	Black=4} ({Don't go for} 34... Kd6 $2 35. Bb2 $18) 1-0

[Event "45th FIDE Olympiad 2024"]
[Site "Budapest"]
[Date "2024.09.12"]
[Round "2.153"]
[White "Supi, Luis Paulo"]
[Black "Santos Flores, Alberto"]
[Result "1-0"]
[ECO "A13"]
[WhiteElo "2570"]
[BlackElo "2168"]
[Annotator "TA"]
[PlyCount "109"]
[EventDate "2024.09.05"]
[EventType "team-tourn"]
[EventCountry "HUN"]
[SourceTitle "playchess.com"]
[Source "ChessBase"]
[SourceQuality "1"]
[WhiteTeam "Brazil"]
[BlackTeam "Ecuador"]
[WhiteTeamCountry "BRA"]
[BlackTeamCountry "ECU"]
[TimeControl "40/5400+30:1800+30"]

{[%evp 14,109,9,4,8,0,0,2,4,4,0,0,0,0,23,0,30,21,27,26,10,8,17,21,12,0,0,0,0,0,5,0,0,0,5,-50,20,26,14,19,58,35,28,28,35,43,84,70,104,102,101,91,99,77,89,85,110,107,120,114,160,160,160,160,160,160,191,190,168,178,204,202,212,181,249,232,260,235,250,272,362,159,652,613,699,695,987,987,1179,1109,817,839,5289,5097,29979,5687,2224,1622]} 1. c4 e6 2. Nf3 d5 3. g3 dxc4 4. Bg2 Nf6 5. O-O a6 6. Qc2 Bd6 7. Qxc4 b5 8. Qc2 Bb7 9. a4 c5 10. Nc3 Qb6 11. Ng5 Bxg2 12. Kxg2 b4 13. Nce4 Nbd7 14. d3 h6 15. Nxf6+ Nxf6 16. Nf3 O-O 17. b3 (17. Nd2 {is interesting.} Ng4 18. e4 Rad8 19. Nc4) 17... Rac8 18. Bb2 Nd7 19. Qc4 Be7 20. Rac1 Qb7 21. Rc2 Bf6 22. Bxf6 Nxf6 23. Rfc1 Nd5 24. d4 (24. Qe4 $11 Qe7 25. Nd2) 24... Nb6 (24... cxd4 $15 25. Qxc8 Rxc8 26. Rxc8+ Kh7) 25. Qd3 $11 cxd4 ({Reject} 25... c4 26. bxc4 Rfd8 27. Qb3 $16) 26. Qxd4 Rxc2 27. Rxc2 Nd5 $1 28. Rc4 a5 29. Rc5 Qa6 30. Qd3 Qb6 31. Qb5 Qxb5 32. Rxb5 Ra8 33. Nd4 Ra6 34. Rc5 Ne7 35. Nf3 Nc6 36. Nd2 Kf8 (36... f6 $142 37. Nc4 Kh7) 37. e3 $16 Ke7 38. Nc4 Kd7 39. Kf3 Ra7 40. h4 Ra6 41. g4 Ra7 42. Ke4 Ra6 43. f4 f6 (43... Ke8 $142 44. f5 exf5+ 45. gxf5 g6 46. fxg6 fxg6) 44. Kd3 $18 Ra7 45. h5 Ra6 46. e4 Ra7 47. e5 Ra6 $2 (47... fxe5 $16 48. Nxe5+ (48. fxe5 Kc7 $18) 48... Nxe5+ 49. fxe5 (49. Rxe5 Rc7 $16) 49... Kd8) 48. exf6 $18 gxf6 49. g5 fxg5 50. fxg5 Ke7 51. gxh6 Kf8 52. Nxa5 Rxa5 53. Rxc6 Rxh5 54. Rxe6 (54. Rc8+ $142 Kf7 55. h7 Rh3+ 56. Kd4 Rh4+ 57. Kc5 Rh5+ 58. Kd6 (58. Kxb4 Rh4+ 59. Kc5 Rh5+ 60. Kd6 Rd5+ 61. Kc6 Rh5 62. h8=Q Rxh8 63. Rxh8 e5) 58... Rxh7 59. Rc7+ Kg8 60. Rxh7) 54... Kf7 55. Rb6 1-0